Cogmind - Beta 9.6 @@@ ROGUE MODE // 2020.06.24 @ 11:48:00 Player: Vectis Result: Destroyed by as-96757 with Assembled Heavy Rifle Performance ------------- Evolutions (0) 0 Regions Visited (2) 400 Robots Destroyed (36) 180 Value Destroyed (515) 515 Prototype IDs (0) 0 Alien Tech Used (0) 0 Bonus (0) 0 TOTAL SCORE: 1095 Bonus ------- None Cogmind --------- Core Integrity 0/250 Matter 201/300 Energy 99/100 System Corruption 14% Temperature Cool (0) Movement Rolling (140) Ox6 Location -10/Mines Parts ------- > --- POWER (1) -------- (None) > --- PROPULSION (2) --- Wheel > --- UTILITY (2) ------ High-capacity Storage Unit High-capacity Storage Unit > --- WEAPON (2) ------- (None) > --- INVENTORY (20) --- Ion Engine Large Storage Unit Large Storage Unit Large Storage Unit Large Storage Unit Large Storage Unit High-capacity Storage Unit High-capacity Storage Unit High-capacity Storage Unit Weapon Shielding Hacking Suite Grenade Launcher Grenade Launcher Peak State ------------ > --- POWER ------------ Light Ion Engine > --- PROPULSION ------- Light Treads Light Treads > --- UTILITY ---------- High-capacity Storage Unit High-capacity Storage Unit > --- WEAPON ----------- Light Assault Rifle Light Assault Rifle > --- INVENTORY -------- Ion Engine Light Treads Wheel Wheel Compact Wheel Small Storage Unit Medium Storage Unit Large Storage Unit Large Storage Unit Large Storage Unit Large Storage Unit Large Storage Unit High-capacity Storage Unit High-capacity Storage Unit High-capacity Storage Unit Weapon Shielding Light Assault Rifle Light Assault Rifle Light Assault Rifle Light Assault Rifle [Rating: 9] Favorites ----------- Power Light Ion Engine Engine Light Ion Engine Propulsion Light Treads Treads Light Treads Wheel Compact Wheel Utility High-capacity Storage Unit Storage High-capacity Storage Unit Weapon Light Assault Rifle Ballistic Gun Light Assault Rifle Launcher Grenade Launcher Build | -11 -10 -10 ------- Run | Scr Mat Min Slots Evolved . | . . . Power . | . . . Propulsion . | . . . Utility . | . . . Weapon . | . . . Parts Attached 30 | 7 12 11 Power 2 | 1 1 . Engine 2 | 1 1 . Core . | . . . Reactor . | . . . Propulsion 7 | 3 . 4 Treads 3 | 2 . 1 Leg . | . . . Wheel 4 | 1 . 3 Hover . | . . . Flight . | . . . Utility 6 | 1 5 . Device . | . . . Storage 6 | 1 5 . Processor . | . . . Hackware . | . . . Protection . | . . . Artifact . | . . . Weapon 15 | 2 6 7 Energy Gun . | . . . Energy Cannon . | . . . Ballistic Gun 12 | 2 5 5 Ballistic Cannon . | . . . Launcher 3 | . 1 2 Special Weapon . | . . . Impact Weapon . | . . . Slashing Weapon . | . . . Piercing Weapon . | . . . Special Melee Weapon . | . . . Unidentified Prototypes . | . . . Parts Lost 13 | . 2 11 Power 2 | . 1 1 Propulsion 5 | . . 5 Utility . | . . . Weapon 6 | . 1 5 Highest Loss Streak 11 | . 1 11 Average Slot Usage (%) 97 | . 98 91 Engine 13 | . 13 9 Treads 26 | . 28 21 Storage 26 | . 26 28 Ballistic Gun 27 | . 27 26 Naked Turns . | . . . Heaviest Build 69 | 11 69 69 Greatest Support 40 | 40 40 40 Greatest Overweight (x) 6 | . 1 6 Average Overweight (x) . | . . 1 Largest Inventory Capacity 20 | 6 20 20 Average Capacity 16 | 5 16 20 Most Carried 20 | 4 20 20 Average Carried 14 | 3 15 18 Final Capacity 20 | 6 20 20 Final Carried 20 | 4 20 13 Class Distribution -------------------- 63% | Hauler-Mutant 36% | Mutant Dominant Class ---------------- Hauler-Mutant | -10/Materials Hauler-Mutant | -10/Mines Resources | -11 -10 -10 ----------- Run | Scr Mat Min Matter Collected 585 | 274 311 . Remotely . | . . . Salvage Created 912 | 64 804 44 Parts 54 | 1 53 . Haulers Intercepted 2 | . 2 . Recyclers Shooed 1 | . 1 . Parts Field Recycled . | . . . Retrieved Matter . | . . . Parts Self-Destructed . | . . . Prevented . | . . . Kills | -11 -10 -10 ------- Run | Scr Mat Min Combat Hostiles Destroyed 26 | . 18 8 Guns 17 | . 16 1 AOE 9 | . 2 7 Classes Destroyed 9 | 1 7 1 Worker 1 | . 1 . Builder 1 | . 1 . Hauler 2 | . 2 . Recycler 2 | 1 1 . Operator 2 | . 2 . Watcher 2 | . 2 . Swarmer 9 | . 9 . Grunt 9 | . 9 . Assembled 8 | . . 8 Best Kill Streak 7 | 1 7 7 Combat Bots Only 7 | . 5 7 Max Kills in Single Turn 7 | 1 2 7 Gunslinging . | . . . Exploded 7 | . 1 7 Melee . | . . . Uniques/NPCs Destroyed . | . . . Combat | -11 -10 -10 -------- Run | Scr Mat Min Damage Taken 1662 | . 699 963 Core 252 | . 115 137 Absorbed by Shields . | . . . Core Remaining (%) 100 | 100 . . Volleys Fired 106 | 6 92 8 Largest 2 | 2 2 2 Hottest 60 | 40 50 60 Shots Fired 212 | 12 184 16 Gun 209 | 12 183 14 Cannon . | . . . Launcher 3 | . 1 2 Special . | . . . Kinetic 209 | 12 183 14 Thermal . | . . . Explosive 3 | . 1 2 Electromagnetic . | . . . Robot Hit Streak 12 | 9 12 4 Robot Miss Streak 5 | 1 5 2 Penetration Max . | . . . Secondary Targets 1 | . . 1 Max Gunslinging Chain 1 | . . 1 Shots Hit Robots 137 | 10 118 9 Core Hits 73 | 3 52 18 Critical Hits 1 | . 1 . Critical Kills . | . . . Critical Parts Destroyed 1 | . 1 . Melee Attacks . | . . . Impact . | . . . Slashing . | . . . Piercing . | . . . Sneak Attacks . | . . . Combat Hostiles . | . . . Follow-up Attacks . | . . . Damage Inflicted 1680 | 80 1093 507 Guns 1129 | 80 953 96 Cannons . | . . . Explosions 551 | . 140 411 Melee . | . . . Ramming . | . . . Kinetic 1129 | 80 953 96 Thermal 77 | . 77 . Explosive 474 | . 63 411 Electromagnetic . | . . . Impact . | . . . Slashing . | . . . Piercing . | . . . Highest Corruption 14 | . 1 14 Average Corruption 1 | . 1 3 Corruption Purged . | . . . Effects 8 | . 2 6 Message Errors 2 | . . 2 Data Loss (minor) 1 | . 1 . Alerts 1 | . . 1 Targeting Errors 4 | . 1 3 Overload Shots . | . . . Overflow Damage 2 | . . 2 Projectiles . | . . . Explosions 2 | . . 2 Melee . | . . . Knockbacks . | . . . Impact . | . . . Kinetic . | . . . Secondary . | . . . Self-Inflicted Damage 76 | . 23 53 Shots 3 | . 1 2 Rammed . | . . . Targets Rammed . | . . . Kicked . | . . . Crushed . | . . . Highest Temperature 12 | . 12 . Average Temperature 7 | . 7 . Received Heat Transfer 213 | . 153 60 Siege Activations . | . . . Robots Corrupted . | . . . Combat Hostiles . | . . . Parts Fried . | . . . Impact Corruptions . | . . . Robots Melted . | . . . Combat Hostiles . | . . . Parts Melted . | . . . Heat Transferred 50 | . 50 . Parts Sabotaged . | . . . Parts Stolen . | . . . Parts Stripped . | . . . Power Chain Reactions . | . . . Missiles Intercepted . | . . . Alert | -11 -10 -10 ------- Run | Scr Mat Min Peak Influence 297 | 5 297 87 Average Influence 155 | 1 192 64 Maximum Alert Level 1 | . 1 . Low Security (%) 70 | 100 60 100 Level 1 29 | . 39 . Level 2 . | . . . Level 3 . | . . . Level 4 . | . . . Level 5 . | . . . High Security . | . . . Max Security . | . . . Squads Dispatched 3 | . 3 . Investigation 1 | . 1 . Extermination . | . . . Reinforcement 2 | . 2 . Assault . | . . . Garrison . | . . . Intercept . | . . . Construction Impeded . | . . . Haulers Reinforced . | . . . Stealth | -11 -10 -10 --------- Run | Scr Mat Min Distress Signals 4 | . 4 . Communications Jammed . | . . . Distress Signals . | . . . Times Spotted 54 | . 38 16 Peak Tracking Total 13 | . 7 13 Tactical Retreats 4 | . 3 1 Traps | -11 -10 -10 ------- Run | Scr Mat Min Traps Triggered 1 | . 1 . Indirectly . | . . . Trap Hack Attempts . | . . . Triggered . | . . . Disarmed . | . . . Reprogrammed 1 | . 1 . Reused . | . . . Traps Extracted . | . . . Installed . | . . . Triggered . | . . . Machines | -11 -10 -10 ---------- Run | Scr Mat Min Machines Disabled 2 | . 1 1 Max in Single Turn 1 | . 1 1 Machines Sabotaged . | . . . Garrisons Compromised . | . . . Overloaded Fab Kills . | . . . Fab Network Shutdowns . | . . . Hacking | -11 -10 -10 --------- Run | Scr Mat Min Machines Accessed 6 | . 6 . Terminals 6 | . 6 . Fabricators . | . . . Repair Stations . | . . . Recycling Units . | . . . Scanalyzers . | . . . Garrison Access . | . . . Total Hacks 21 | . 21 . Successful 10 | . 10 . Failed 10 | . 10 . Catastrophic 1 | . 1 . Database Lockouts 1 | . 1 . Manual 11 | . 11 . Terminals 21 | . 21 . Fabricators . | . . . Repair Stations . | . . . Recycling Units . | . . . Scanalyzers . | . . . Garrison Access . | . . . Terminal Hacks 8 | . 8 . Part Schematic 1 | . 1 . Robot Analysis 1 | . 1 . Locate Traps 2 | . 2 . Reprogram Traps 1 | . 1 . Security Status 1 | . 1 . Zone Layout 2 | . 2 . Fabricator Hacks . | . . . Repair Station Hacks . | . . . Recycling Unit Hacks . | . . . Scanalyzer . | . . . Garrison Access Hacks . | . . . Unauthorized Hacks 2 | . 2 . Terminals 2 | . 2 . Botnet 1 | . 1 . Operators 1 | . 1 . Fabricators . | . . . Repair Stations . | . . . Recycling Units . | . . . Scanalyzers . | . . . Garrison Access . | . . . Data Cores Recovered . | . . . Used . | . . . Hacking Detections 6 | . 6 . Full Trace Events . | . . . Feedback Events . | . . . Feedback Blocked . | . . . Robot Schematics Acquired . | . . . Robots Built . | . . . Matter . | . . . Time . | . . . Total Robot Build Rating . | . . . Part Schematics Acquired 1 | . 1 . Parts Built . | . . . Matter . | . . . Time . | . . . Total Part Build Rating . | . . . Parts Repaired . | . . . Time . | . . . Parts Recycled . | . . . Recycled Matter . | . . . Retrieved Matter . | . . . Retrieved Components . | . . . Parts Scanalyzed . | . . . Part Schematics Acquired . | . . . Parts Damaged . | . . . Bothacking | -11 -10 -10 ------------ Run | Scr Mat Min Used RIF Installer . | . . . Robots Hacked . | . . . Non-combat . | . . . Combat . | . . . Robot Hacks Applied . | . . . Relay Couplers Released . | . . . Robots Rewired . | . . . Allies Hacked . | . . . Hacks Repelled . | . . . Allies | -11 -10 -10 -------- Run | Scr Mat Min Total Allies . | . . . Largest Group . | . . . Highest-Rated Group . | . . . Highest-Rated Ally . | . . . Total Orders . | . . . Ally Attacks . | . . . Total Damage . | . . . Kills . | . . . Allies Corrupted . | . . . Allies Melted . | . . . Intel | -11 -10 -10 ------- Run | Scr Mat Min Robot Analysis Total 1 | . 1 . Derelict Logs Recovered . | . . . Drone Launches . | . . . Drone Recoveries . | . . . Exploration | -11 -10 -10 ------------- Run | Scr Mat Min Turns Passed 1677 | 146 1264 267 Spaces Moved 766 | 76 557 133 Core 7 | 7 . . Treads 736 | 69 557 110 Legs . | . . . Wheels 23 | . . 23 Hover . | . . . Flight . | . . . Fastest Speed 50 | 50 160 110 Average Speed 170 | 149 173 172 Slowest Speed 180 | 160 180 180 Overloaded Moves . | . . . Propulsion Burnouts . | . . . Robots Hopped . | . . . Cave-ins Triggered . | . . . Exploration Rate (%) 36 | 6 69 34 Regions Visited 2 Branch Regions 1 Pre-discovered Areas . | . . . Known Exits Taken . | . . . Unknown Exits Taken 2 | 1 1 . Scrap Searched . | . . . Spaces Dug . | . . . Terrain Destroyed 51 | . 36 15 Melee . | . . . Projectile . | . . . AOE 51 | . 36 15 Actions | -11 -10 -10 --------- Run | Scr Mat Min Total 959 | 97 706 156 Wait 34 | 3 27 4 Move 764 | 75 556 133 Hop . | . . . Pick Up 20 | 5 15 . Fast Attach 6 | 5 1 . Attach 11 | 2 2 7 Detach 1 | 1 . . Swap 13 | . 9 4 Drop 4 | . 4 . Fire 106 | 6 92 8 Melee . | . . . Ram . | . . . Kick . | . . . Crush . | . . . Escape Stasis . | . . . Rewire . | . . . Trap . | . . . Miscellaneous . | . . . Route ------- -11/Scrapyard -10/Materials (discovered 4 exits: [*Mat x2] / [*Min x2]) -10/Mines History --------- Turn | Location | Event 6 | -11/Scrapyard | Discovered new exit (range 16) 147 | -11/Scrapyard | Entered Materials 308 | -10/Materials | Build established: Mutant 348 | -10/Materials | Discovered new exit (range 7) 751 | -10/Materials | Discovered new exit (range 10) 787 | -10/Materials | Discovered new exit (range 10) 905 | -10/Materials | Build established: Hauler-Mutant 1033 | -10/Materials | Central database locked down 1280 | -10/Materials | Discovered new exit (range 15) 1411 | -10/Materials | Entered Mines 1580 | -10/Mines | Assembled infested the area 1585 | -10/Mines | Assisted by a Guerilla fighting off Assembled 1608 | -10/Mines | Core integrity fell below 50% 1618 | -10/Mines | System corruption reached 10% 1627 | -10/Mines | Core integrity fell below 20% 1638 | -10/Mines | Destroyed 7 combat bots 1678 | -10/Mines | Destroyed by as-96757 with Assembled Heavy Rifle Last Messages --------------- 01617_ as-03215 destroyed. 01617_ as-00816 destroyed. 01617_ Lgt. Treads destroyed. 01617_ Destroyed Lgt. Treads. 01617_ as-18881 destroyed. 01631_ System corrupted: Lgt. Assault Rifle targeting data glitched. 01632_ Lgt. Assault Rifle destroyed. 01633_ M4BV SFD8VLM0TTUQHJ17ES1BF:RYK 01639_ Lgt. Assault Rifle destroyed. 01645_ System corrupted: Lgt. Assault Rifle targeting data glitched. 01645_ as-26307 destroyed. 01645_ Switching to secondary target: as-51873. 01649_ Wheel destroyed. 01652_ R-06 Scavenger destroyed. 01661_ Knocked back. 01662_ System corrupted: IFF burst signal emitted. 01671_ Com. Wheel destroyed. 01671_ System corrupted by crushing effect (+4). 01676_ Laser Drill disabled. 01677_ Lgt. Assault Rifle destroyed. Map ----- +----------------------------------------------------+ | ???????????? #####???????# ##????????? | | ????????????? ??????????????# ##???????? | | ???????????? ????????????????# " " #???????? | | ?????????????????????????????### # "" #???????? | | ?????????????????????????????????#% """ ##?????? # | | ?????????????????????????????????# """ ##??? # | | ?????????????????????????????????## ## # | | ??????????????????????????????????# #? | | ??????????????????????????????????## !% ##?? | | ???????????????????????????????????# # ####??? | | ???????????????????????????????????# ## ##?????? | | ???????????????????????????????????# #?###??????? | | ???????????????????????????????????# #??????????? | | ???????????????????????????????????# #????#?????? | | ???????????????????????????????????# #### #?????? | | ??????????????????????????????????## #?????? | | ??????????????????????????????##### #?????? | | ?????????????????????????????## ##?????? | | ????????????????????????????##aa ####??????? | | ????????????????????????##### ### ##?????????? | | ?????????????????????#### a ##?## ##?????????? | | ?????????????#########r ##??## ####?#####? | | ?????????????? """ a##???# ### ## | | ???????????????? "" ##????# ## # | | ???????????????????## """ ##????## ### # | | ????????????????????## @ #???### #### # | | ?????????????????????## ##??## #### ## | | ??????????????????????## ##???# #### #? | | ???????????????????????##?????# #?## #? | | ??????????????????????????????## #??## #? | | ??????????????# ############### ##???# ## | | ?????????????# ###????## # | | ?????????????# ##???????# # | | ????????????????????######## ### ##????????# # | | ???????????????????????????# #?## ##????????## ## | | ?????????????????########### #??####????????## #? | | ?????????????????# ## #??????????????# #? | | ?????????????????# """ ## #?????????????# ##? | | ?????????????????# """ #????????????# #?? | | ?????????????????# """ ####????????????# ##?? | | ?????????????????# #???????????????####???? | | ?????????????????# #??????????????????????? | | ?????????????????# #??????????????????????? | | ?????????????????##########??????????????????????? | | ?????????????????????????????????????????????????? | | ?????????????????????????????????????????????????? | | | | | | | | | +----------------------------------------------------+ Best States ------------- Heat Dissipation 25 Energy Generation 10 Energy Capacity 250 Matter Stores 300 Matter Capacity 300 Sight Range 16 Terrain Scan Density 10 Evasion (%) 40 Recoil Reduction 2 Item Schematics ----------------- Hcp. Storage Unit | -10/Materials | Hacked Robot Schematics ------------------ None Fabricated ------------ Nothing Alien Tech Used ----------------- None Achievements -------------- None Challenges ------------ None Game ------ Seed MobileGyrokineticShield Manual? 0 Play Time 00:13:11 Cumulative 146.6 hours Start 2020.06.24 @ 11:36:29 End 2020.06.24 @ 11:48:00 Sessions 1 Manual Loads 0 Difficulty Rogue Special Mode None Game No. 68 Rogue 68 Adventurer 0 Explorer 0 Win Type - Total 7 Types 6/0/0/1/0/0/0 Lore% 72 Gallery% 68 Achievement% 59 Wizard Run 0 Options --------- ASCII 1 Keyboard 0 Movement Numpad Keybinds 0 Fullscreen 1 Font 18/Cog Map View 76x50 Tactical HUD 1 Map Filters NONE Filters NONE Steam 1 RUN: 92a7ffd0-56e2-4e52-8b67-72f7bdef6296